lending/lending_fUSD_20260306
["ID","MTS","AMOUNT","RATE_DAILY","PERIOD"]
[407758728,1772769041366,-278.94070816,0.00019259,2]
[407758729,1772769041376,-152.0,0.00019262,7]
[407758730,1772769041385,-1000.0,0.00019267,2]
[407758731,1772769041394,-1202.29249175,0.00019269,2]
[407758732,1772769041403,-1000.0,0.00019294,2]
[407758733,1772769041412,-2905.12,0.00019304,2]
[407758734,1772769041422,-702.87055645,0.00019351,2]
[407758735,1772769041430,-1000.0,0.00019361,2]
[407758736,1772769041439,-282.71673119,0.00019361,2]
[407758737,1772769041448,-187.78006525,0.00019361,2]
[407758738,1772769041457,-500.0,0.00019361,2]
[407758739,1772769041466,-168.0,0.00019366,2]
[407758740,1772769041475,-350.0,0.00019413,2]
[407758741,1772769041484,-50000.0,0.0001942,2]
[407758742,1772769041495,-168.0,0.00019446,2]
[407758743,1772769041504,-500.0,0.00019452,7]
[407758744,1772769041515,-800.0,0.00019452,7]
[407758745,1772769041524,-1738.48477405,0.00019473,2]
[407758746,1772769041532,-5641.40193121,0.00019473,2]
[407758747,1772769041542,-168.0,0.00019477,2]
[407758748,1772769041553,-164.05,0.0001949,2]
[407758749,1772769041563,-1000.0,0.00019568,2]
[407758750,1772769041572,-500.0,0.00019589,2]
[407758751,1772769041580,-500.0,0.00019589,2]
[407758752,1772769041590,-500.0,0.00019589,2]
[407758753,1772769041601,-500.0,0.00019589,2]
[407758754,1772769041610,-500.0,0.00019589,2]
[407758755,1772769041619,-286.65230296,0.00019589,2]
[407758756,1772769041628,-204.91751274,0.00019593,2]
[407758757,1772769041636,-1430.40583043,0.000196,2]
[407758758,1772769041646,-152.0,0.00019615,8]
[407758759,1772769041656,-368.87,0.00019617,2]
[407758760,1772769041666,-1042.0,0.0001969,2]
[407758761,1772769041675,-619.0,0.0001969,2]
[407758762,1772769041684,-1341.0,0.0001969,2]
[407758763,1772769041692,-3517.111,0.0001969,2]
[407758764,1772769041701,-1219.676,0.0001969,2]
[407758765,1772769041710,-922.0,0.0001969,2]
[407758766,1772769041719,-150.31,0.0001969,2]
[407758767,1772769041728,-1282.924,0.0001969,2]
[407758768,1772769041736,-414.0,0.0001969,2]
[407758769,1772769041745,-5990.0,0.0001969,2]
[407758770,1772769041754,-437.0,0.00019737,2]
[407758771,1772769041763,-391.0,0.00019739,2]
[407758772,1772769041772,-437.0,0.00019759,2]
[407758773,1772769041782,-164.05,0.0001976,2]
[407758774,1772769041791,-2905.12,0.0001978,2]
[407758775,1772769041800,-168.0,0.00019781,2]
[407758776,1772769041809,-2010.0,0.000198,2]
[407758777,1772769041820,-882.524513,0.00019802,2]
[407758778,1772769041830,-437.0,0.00019807,2]
[407758779,1772769041840,-437.0,0.00019821,2]
[407758780,1772769041849,-153.26719895,0.00019831,2]
[407758781,1772769041858,-437.0,0.0001984,2]
[407758782,1772769041867,-437.0,0.0001984,2]
[407758783,1772769041877,-500.0,0.0001984,2]
[407758784,1772769041887,-437.0,0.00019842,2]
[407758785,1772769041896,-1000.0,0.00019842,2]
[407758786,1772769041907,-166.66,0.00019857,2]
[407758787,1772769041917,-25000.0,0.00019865,3]
[407758788,1772769041929,-172.74325605,0.0001987,3]
[407758789,1772769041938,-500.0,0.00019873,2]
[407758790,1772769041948,-25000.0,0.00019874,3]
[407758791,1772769041959,-900.0,0.0001988,2]
[407758792,1772769041968,-172.74325605,0.0001988,3]
[407758793,1772769041977,-25000.0,0.00019882,3]
[407758794,1772769041986,-25000.0,0.00019891,3]
[407758795,1772769041995,-5800.0,0.00019892,2]
[407758796,1772769042005,-3405.73966025,0.00019899,2]
[407758797,1772769042014,-278.94070816,0.000199,2]
[407758798,1772769042023,-25000.0,0.000199,3]
[407758799,1772769042037,-10000.0,0.000199,2]
[407758800,1772769042046,-5800.0,0.000199,2]
[407758801,1772769042055,-172.74325605,0.000199,3]
[407758802,1772769042064,-163.89338169,0.000199,2]
[407758803,1772769042075,-21510.35850006,0.000199,3]
[407758804,1772769042084,-5641.40193121,0.000199,2]
[407758805,1772769042093,-702.87055645,0.000199,2]
[407758806,1772769042103,-184.45900468,0.000199,2]
[407758807,1772769042112,-2788.0,0.000199,2]
[407758808,1772769042122,-292.11,0.00019903,2]
[407758809,1772769042131,-437.0,0.00019907,2]
[407758810,1772769042140,-1000.0,0.00019909,2]
[407758811,1772769042149,-293.17725025,0.00019909,2]
[407758812,1772769042159,-194.72792766,0.00019909,2]
[407758813,1772769042168,-500.0,0.00019909,2]
[407758814,1772769042178,-551.1402382,0.0001992,2]
[407758815,1772769042187,-437.0,0.00019921,2]
[407758816,1772769042197,-463.0,0.00019922,2]
[407758817,1772769042207,-437.0,0.00019929,2]
[407758818,1772769042216,-226.85912828,0.00019943,2]
[407758819,1772769042225,-350.70736526,0.00019956,4]
[407758820,1772769042234,-437.0,0.00019968,2]
[407758821,1772769042243,-152.0,0.00019969,9]
[407758822,1772769042252,-229.79782269,0.00019973,2]
[407758823,1772769042261,-500.0,0.00019973,2]
[407758824,1772769042270,-500.0,0.00019973,2]
[407758825,1772769042279,-168.9717679,0.00019973,2]
[407758826,1772769042288,-546.12894098,0.00019973,2]
[407758827,1772769042297,-547.9842787,0.00019973,2]
[407758828,1772769042306,-510.95525373,0.00019973,2]
[407758829,1772769042316,-500.0,0.00019973,2]
[407758830,1772769042325,-500.0,0.00019973,2]
[407758831,1772769042334,-500.0,0.00019973,2]
[407758832,1772769042343,-500.0,0.00019973,2]
[407758833,1772769042352,-500.52071293,0.00019973,2]
[407758834,1772769042361,-500.0,0.00019973,2]
[407758835,1772769042370,-500.0,0.00019973,2]
[407758836,1772769042379,-500.0,0.00019973,2]
[407758837,1772769042388,-500.0,0.00019973,2]
[407758838,1772769042397,-500.0,0.00019973,2]
[407758839,1772769042406,-500.0,0.00019973,2]
[407758840,1772769042415,-500.0,0.00019973,2]
[407758841,1772769042423,-500.0,0.00019973,2]
[407758842,1772769042433,-500.0,0.00019973,2]
[407758843,1772769042442,-500.0,0.00019973,2]
[407758844,1772769042451,-331.25166911,0.00019973,2]
[407758845,1772769042459,-500.0,0.00019973,2]
[407758846,1772769042469,-500.0,0.00019973,2]
[407758847,1772769042478,-500.0,0.00019973,2]
[407758848,1772769042487,-500.0,0.00019973,2]
[407758849,1772769042495,-500.0,0.00019973,2]
[407758850,1772769042504,-500.0,0.00019973,2]
[407758851,1772769042513,-500.0,0.00019973,2]
[407758852,1772769042522,-500.46240701,0.00019973,2]
[407758853,1772769042531,-500.0,0.00019973,2]
[407758854,1772769042540,-500.0,0.00019973,2]
[407758855,1772769042548,-338.51879246,0.00019973,2]
[407758856,1772769042558,-327.7404602,0.00019973,2]
[407758857,1772769042567,-376.4148485,0.00019973,2]
[407758858,1772769042576,-463.0,0.00019979,2]
[407758859,1772769042585,-229.64083117,0.0001998,2]
[407758860,1772769042595,-179.24781177,0.0001999,2]
[407758861,1772769042605,-10543.1143527,0.00019993,2]
[407758862,1772769042615,-1078.1652425,0.00019999,2]
[407758863,1772769042625,-15210.3063146,0.00019999,2]
[407758864,1772769042635,-48292.9719916,0.00019999,2]
[407758865,1772769042646,-160.4575062,0.00019999,2]
[407758866,1772769042656,-18421.9418438,0.00019999,2]
[407758867,1772769042665,-500.0,0.00019999,2]
[407758868,1772769042674,-500.0,0.00019999,2]
[407758869,1772769042684,-516.19561714,0.00019999,2]
[407758870,1772769042695,-4768.4209382,0.00019999,2]
[407758871,1772769042705,-212940.7989822,0.00019999,2]
[407758872,1772769042714,-150.0,0.00019999,2]
[407758873,1772769042724,-232.72199376,0.00019999,2]
[407758874,1772769042735,-2703.0,0.0002,2]
[407758875,1772769042744,-151.0,0.0002,2]
[407758876,1772769042753,-151.0,0.0002,2]
[407758877,1772769042762,-151.0,0.0002,2]
[407758878,1772769042771,-971552.98661542,0.0002,2]
[407758879,1772769042791,-347.13116499,0.0002,2]
[407758880,1772769042971,-3405.73966023,0.000199,2]
[407758881,1772769042981,-1738.48477405,0.000199,2]
[407758882,1772769042991,-9894.33712169,0.0002,2]
[407758883,1772769043007,-2164241.19034291,0.0002,2]
[407758884,1772769043040,-8792.44010933,0.0002,2]
[407758885,1772769043053,-8947.21879473,0.0002,2]
[407758886,1772769043066,-8943.78386462,0.0002,2]
[407758887,1772769043081,-8731.54866152,0.0002,2]
[407758888,1772769044758,-1.16970231,0.00019574,2]
[407758889,1772769044848,-344.0,0.00019574,2]
[407758890,1772769044860,-56.74446751,0.00019574,2]
[407758891,1772769044870,-2459.0,0.0001969,2]
[407758892,1772769044880,-732.15242524,0.000199,2]
[407758893,1772769045735,-2673.58723499,0.000199,2]
[407758894,1772769045745,-9605.86629264,0.0002,2]
[407758895,1772769045788,-252.52436012,0.0002,2]
[407758897,1772769048183,-1222.0,0.0002,2]
[407758898,1772769048205,-28136.85515772,0.0002,2]
[407758899,1772769069977,10000.01,0.00015956,2]
[407758900,1772769070000,10000.01,0.00015956,2]
[407758901,1772769070022,10000.01,0.00015956,2]
[407758902,1772769070048,10000.01,0.00015956,2]
[407758903,1772769070076,10000.01,0.00015956,2]
[407758904,1772769070111,10000.01,0.00015956,2]
[407758905,1772769070151,10000.01,0.00015956,2]
[407758906,1772769070185,10000.01,0.00015956,2]
[407758907,1772769070215,10000.01,0.00015956,2]
[407758908,1772769070248,10000.01,0.00015956,2]
[407758909,1772769093464,503.0,0.00014,2]
[407758910,1772769140715,646.04860124,0.00015856,2]
[407758911,1772769194871,291.5844657,0.00015856,2]
[407758912,1772769234519,507.0,0.00014,2]
[407758913,1772769234763,5131.73284509,0.00015856,2]
[407758914,1772769241751,300.0,0.00015955,2]
[407758915,1772769301212,504.0,0.00015955,2]
[407758916,1772769301288,300.0,0.00015955,2]
[407758917,1772769305765,239.0920356,0.00015856,2]
[407758918,1772769337746,1577.55205237,0.00015856,2]
[407758919,1772769337769,375.34571023,0.00015856,2]
[407758920,1772769361186,300.0,0.00015955,2]
[407758921,1772769421206,300.0,0.00015955,2]
[407758922,1772769426454,565.29252612,0.00015856,2]
[407758923,1772769463051,300.0,0.00015955,2]
[407758924,1772769466016,315.35727582,0.00015955,2]
[407758925,1772769594477,7844.01448783,9.95e-05,2]
[407758926,1772769594500,10000.01,9.95e-05,2]
[407758927,1772769594522,10000.01,9.95e-05,2]
[407758928,1772769594547,10000.01,9.95e-05,2]
[407758929,1772769594569,5933.71455923,9.95e-05,2]
[407758930,1772769600955,4057.45413928,8e-05,2]
[407758931,1772769601849,8.84130149,0.00015955,2]
[407758932,1772769601872,1191.15869851,0.00015955,2]
[407758933,1772769602338,507.0,0.00014,2]
[407758934,1772769605212,7660.80577999,0.00011,2]
[407758936,1772769614239,641.0455215,0.00015946,2]
[407758937,1772769614261,221.1844785,0.00015946,2]
[407758938,1772769614444,862.23,0.00015946,2]
[407758939,1772769617863,151.0,0.00015953,2]
[407758940,1772769618232,151.0,0.00015953,2]
[407758941,1772769632651,162.13251525,0.00015946,2]
[407758942,1772769632952,509.0,0.00014,2]
[407758943,1772769636521,500.0,0.00015955,2]
[407758944,1772769636579,500.0,0.00015955,2]
[407758945,1772769636643,500.0,0.00015955,2]
[407758946,1772769636684,500.0,0.00015955,2]
[407758947,1772769636744,249.73284378,0.00015955,2]
[407758948,1772769650258,159.85,0.00013818,2]
[407758949,1772769650812,804.93467201,0.00015,14]
[407758950,1772769655259,151.0,0.00015955,2]
[407758951,1772769657952,151.0,0.00015955,2]
[407758952,1772769658206,151.91793441,0.00015955,2]
[407758953,1772769666595,1036.47008289,0.00015955,5]
[407758954,1772769668640,205.0,9.8e-05,2]
[407758955,1772769669658,204.80043749,0.00015955,2]
[407758956,1772769680058,500.0,0.00015955,2]
[407758957,1772769680096,174.54988729,0.00015955,2]
[407758958,1772769693513,161.84,0.00015637,2]
[407758959,1772769693597,1381.31,0.00015637,2]
[407758960,1772769693925,184.70284894,0.00015955,2]
[407758961,1772769708240,426.35429944,0.00015856,2]
[407758962,1772769708265,811.30070056,0.00015856,2]
[407758963,1772769710369,250.0,0.00015,2]
[407758964,1772769712590,494.63096032,0.00015856,2]
[407758965,1772769715324,2680.8702,0.00015856,2]
[407758966,1772769718510,175.47814157,0.00015856,2]
[407758967,1772769720171,472.1849211,0.00015955,2]
[407758968,1772769720639,2500.0,0.00015856,2]
[407758969,1772769721593,249.97031598,0.00015955,2]
[407758970,1772769723943,2214.45377447,0.00015856,2]
[407758971,1772769726688,151.120986,0.00015955,2]
[407758972,1772769726710,148.879014,0.00015955,2]
[407758973,1772769730725,500.0,0.00015956,2]
[407758974,1772769730937,151.0,0.00015956,2]
[407758975,1772769731338,500.0,0.00015956,2]
[407758976,1772769732458,500.0,0.00015956,2]
[407758977,1772769735116,393.1035483,7.888e-05,2]
[407758978,1772769738684,151.0,0.00015956,2]
[407758979,1772769738718,200.0,0.00015956,2]
[407758980,1772769739319,151.0,0.00015956,2]
[407758981,1772769740509,151.0,0.00015956,2]
[407758982,1772769740572,151.0,0.00015956,2]
[407758983,1772769741149,151.0,0.00015956,2]
[407758984,1772769741742,151.0,0.00015956,2]
[407758985,1772769742419,151.0,0.00015956,2]
[407758986,1772769743004,151.0,0.00015956,2]
[407758987,1772769743610,151.0,0.00015956,2]
[407758988,1772769744243,151.0,0.00015956,2]
[407758989,1772769744787,1968.71279744,0.0001,2]
[407758990,1772769744864,151.0,0.00015956,2]
[407758991,1772769745023,3977.31464026,0.00015856,2]
[407758992,1772769745047,1049.93564321,0.00015856,2]
[407758993,1772769746661,500.0,0.00015956,2]
[407758994,1772769747390,19.12370049,0.000107,2]
[407758995,1772769747420,250.35608277,0.000107,2]
[407758996,1772769749052,-500.0,0.00015956,2]
[407758997,1772769760950,-500.0,0.00015956,2]
[407758998,1772769763974,-151.0,0.00015956,2]
[407758999,1772769770444,-151.0,0.00015956,2]
[407759000,1772769770474,-151.0,0.00015956,2]
[407759001,1772769770503,-151.0,0.00015956,2]
[407759002,1772769773120,-151.0,0.00015956,2]
[407759003,1772769773151,-151.0,0.00015956,2]
[407759004,1772769773179,-151.0,0.00015956,2]
[407759005,1772769773208,-151.0,0.00015956,2]
[407759006,1772769776210,-1103.23679235,0.00015955,2]
[407759007,1772769782239,-2206.4735847,0.00015955,2]
[407759008,1772769788331,-4412.9471694,0.00015955,2]
[407759009,1772769794441,-1174.1156612,0.00015955,2]
[407759010,1772769794469,-151.0,0.00015956,2]
[407759011,1772769831851,-500.0,0.00015955,2]
[407759012,1772769831879,-585.77667999,0.00015955,2]
[407759013,1772769838005,-3045.75421304,0.00015956,2]
[407759014,1772769843961,-10000.01,0.00015956,2]
[407759015,1772769871023,500.0,0.00015955,2]
[407759016,1772769871288,500.0,0.00015955,2]
[407759017,1772769871524,500.0,0.00015955,2]
[407759018,1772769871769,500.0,0.00015955,2]
[407759019,1772769872003,500.0,0.00015955,2]
[407759020,1772769872240,500.0,0.00015955,2]
[407759021,1772769872917,500.0,0.00015955,2]
[407759022,1772769872964,500.0,0.00015955,2]
[407759023,1772769872993,500.0,0.00015955,2]
[407759024,1772769873214,500.0,0.00015955,2]
[407759025,1772769882248,500.0,0.000159,2]
[407759026,1772769884125,2500.0,0.00015856,2]
[407759027,1772769891319,500.0,0.00015955,2]
[407759028,1772769891567,536.50967307,0.00015955,2]
[407759029,1772769895175,500.0,0.00015955,2]
[407759030,1772769895426,463.50032693,0.00015955,2]
[407759031,1772769895449,36.49967307,0.00015955,2]
[407759032,1772769895685,500.0,0.00015955,2]
[407759033,1772769895964,500.0,0.00015955,2]
[407759034,1772769896200,500.0,0.00015955,2]
[407759035,1772769896437,500.0,0.00015955,2]
[407759036,1772769896679,500.0,0.00015955,2]
[407759037,1772769896941,500.0,0.00015955,2]
[407759038,1772769897182,500.0,0.00015955,2]
[407759039,1772769897409,500.0,0.00015955,2]
[407759040,1772769899329,3022.21312932,0.00015856,2]
[407759041,1772769902171,300.0,0.00015955,2]
[407759042,1772769902211,649.0,0.00015955,2]
[407759043,1772769911295,154.206417,0.0001549,7]
[407759044,1772769916859,1838.09078061,0.000159,2]
[407759045,1772769916883,3716.90921939,0.000159,2]
[407759046,1772769957074,151.0,0.00015956,2]
[407759047,1772769959712,508.0,0.00014,2]
[407759048,1772769962263,300.0,0.00015955,2]
[407759049,1772769994907,500.0,0.00015955,2]
[407759050,1772769995232,500.0,0.00015955,2]
[407759051,1772769995533,500.0,0.00015955,2]
[407759052,1772769995849,500.0,0.00015955,2]
[407759053,1772769996167,500.0,0.00015955,2]
[407759054,1772769996211,500.0,0.00015955,2]
[407759055,1772769996243,500.0,0.00015955,2]
[407759056,1772769996274,500.0,0.00015955,2]
[407759057,1772769996310,500.0,0.00015955,2]
[407759058,1772769996350,500.0,0.00015955,2]
[407759059,1772769996379,324.10078061,0.00015955,2]
[407759060,1772769996407,175.89921939,0.00015955,2]
[407759061,1772769996445,500.0,0.00015955,2]
[407759062,1772769996475,500.0,0.00015955,2]
[407759063,1772769996511,500.0,0.00015955,2]
[407759064,1772769996544,500.0,0.00015955,2]
[407759065,1772769996573,500.0,0.00015955,2]
[407759066,1772769996602,500.0,0.00015955,2]
[407759067,1772769996637,500.0,0.00015955,2]
[407759068,1772769996670,500.0,0.00015955,2]
[407759069,1772769996702,500.0,0.00015955,2]
[407759070,1772769996741,500.0,0.00015955,2]
[407759071,1772769996772,500.0,0.00015955,2]
[407759072,1772769996810,500.0,0.00015955,2]
[407759073,1772769996842,500.0,0.00015955,2]
[407759074,1772769996891,599.17209395,0.00015955,2]
[407759075,1772769997047,500.0,0.00015955,2]
[407759076,1772769997101,500.0,0.00015955,2]
[407759077,1772770008219,487.04201847,0.00015856,2]
[407759078,1772770020757,590.39387515,0.00015955,2]
[407759079,1772770020788,590.39387515,0.00015955,2]
[407759080,1772770020817,57.10891789,0.00015955,2]
[407759081,1772770020843,533.28495726,0.00015955,2]
[407759082,1772770020877,590.39387515,0.00015955,2]
[407759083,1772770020907,590.39387515,0.00015955,2]
[407759084,1772770020943,590.39387515,0.00015955,2]
[407759085,1772770020980,590.39387515,0.00015955,2]
[407759086,1772770021007,590.39387515,0.00015955,2]
[407759087,1772770021037,590.39387515,0.00015955,2]
[407759088,1772770021070,590.39387515,0.00015955,2]
[407759089,1772770021100,590.39387515,0.00015955,2]
[407759090,1772770021131,590.39387515,0.00015955,2]
[407759091,1772770021165,590.39387515,0.00015955,2]
[407759092,1772770021193,590.39387515,0.00015955,2]
[407759093,1772770021224,590.39387515,0.00015955,2]
[407759094,1772770021254,590.39387515,0.00015955,2]
[407759095,1772770021283,590.39387515,0.00015955,2]
[407759096,1772770021311,590.39387515,0.00015955,2]
[407759097,1772770021340,590.39387515,0.00015955,2]
[407759098,1772770021374,20.42304034,0.00015955,2]
[407759099,1772770021398,569.97083481,0.00015955,2]
[407759100,1772770021426,590.39387515,0.00015955,2]
[407759101,1772770021454,590.39387515,0.00015955,2]
[407759102,1772770021481,590.39387515,0.00015955,2]
[407759103,1772770021509,590.39387515,0.00015955,2]
[407759104,1772770021649,590.39387515,0.00015955,2]
[407759105,1772770021685,590.39387515,0.00015955,2]
[407759106,1772770021719,590.39387515,0.00015955,2]
[407759107,1772770021762,590.39387515,0.00015955,2]
[407759108,1772770021816,590.39387515,0.00015955,2]
[407759109,1772770021874,590.39387515,0.00015955,2]
[407759110,1772770021916,590.39387515,0.00015955,2]
[407759111,1772770021953,300.0,0.00015955,2]
[407759112,1772770021984,590.39387515,0.00015955,2]
[407759113,1772770022016,590.39387515,0.00015955,2]
[407759114,1772770022044,590.39387515,0.00015955,2]
[407759115,1772770022072,590.39387515,0.00015955,2]
[407759116,1772770022126,274.13103794,0.00015955,2]
[407759117,1772770022151,316.26283721,0.00015955,2]
[407759118,1772770022196,590.39387515,0.00015955,2]
[407759119,1772770022227,590.39387515,0.00015955,2]
[407759120,1772770022256,590.39387515,0.00015955,2]
[407759121,1772770022298,590.39387515,0.00015955,2]
[407759122,1772770022330,590.39387515,0.00015955,2]
[407759123,1772770023395,590.39387515,0.00015955,2]
[407759124,1772770023426,590.39387515,0.00015955,2]
[407759125,1772770023458,590.39387515,0.00015955,2]
[407759126,1772770023489,590.39387515,0.00015955,2]
[407759127,1772770023524,590.39387515,0.00015955,2]
[407759128,1772770023563,590.39387515,0.00015955,2]
[407759129,1772770023591,590.39387515,0.00015955,2]
[407759130,1772770023619,590.39387515,0.00015955,2]
[407759131,1772770023648,590.39387515,0.00015955,2]
[407759132,1772770023680,590.39387515,0.00015955,2]
[407759133,1772770023711,590.39387515,0.00015955,2]
[407759134,1772770023741,237.44516039,0.00015955,2]
[407759135,1772770023765,352.94871476,0.00015955,2]
[407759136,1772770023795,590.39387515,0.00015955,2]
[407759137,1772770023832,590.39387515,0.00015955,2]
[407759138,1772770032442,151.0,0.00015956,2]
[407759139,1772770032535,500.0,0.00015956,2]
[407759140,1772770033044,151.0,0.00015956,2]
[407759141,1772770034557,151.0,0.00015956,2]
[407759142,1772770034586,500.0,0.00015956,2]
[407759143,1772770034689,164.46815031,0.00015956,2]
[407759144,1772770034749,500.0,0.00015956,2]
[407759145,1772770035076,500.0,0.00015956,2]
[407759146,1772770035290,1000.0,0.00015955,2]
[407759147,1772770035721,500.0,0.00015956,2]
[407759148,1772770035755,179.97595802,0.00012,2]
[407759149,1772770036398,500.0,0.00015956,2]
[407759150,1772770037007,500.0,0.00015956,2]
[407759151,1772770038123,500.0,0.00015956,2]
[407759152,1772770039138,200.0,0.00015956,2]
[407759153,1772770040682,500.0,0.00015956,2]
[407759154,1772770041279,500.0,0.00015956,2]
[407759155,1772770041911,500.0,0.00015956,2]
[407759156,1772770042520,500.0,0.00015956,2]
[407759157,1772770043102,468.82942661,0.00015956,2]
[407759158,1772770043124,31.17057339,0.00015956,2]
[407759159,1772770044127,-1428.58967682,0.00015956,2]
[407759160,1772770044675,500.0,0.00015956,2]
[407759161,1772770045466,500.0,0.00015956,2]
[407759162,1772770045615,500.0,0.00015956,2]
[407759163,1772770046221,500.0,0.00015956,2]
[407759164,1772770053598,2519.39,0.00013337,2]
[407759165,1772770053742,2500.0,0.00015856,2]
[407759166,1772770061029,500.0,0.00015956,2]
[407759167,1772770064762,-2463.50032693,0.00015956,2]
[407759168,1772770064892,-151.0,0.00015956,2]
[407759169,1772770064958,-9849.01,0.00015956,2]
[407759170,1772770064995,-151.0,0.00015956,2]
[407759171,1772770065015,-9698.01,0.00015956,2]
[407759172,1772770065031,-10000.01,0.00015956,2]
[407759173,1772770065068,-10000.01,0.00015956,2]
[407759174,1772770065088,-10000.01,0.00015956,2]
[407759175,1772770074038,-151.0,0.00015956,2]
[407759176,1772770074066,-151.0,0.00015956,2]
[407759177,1772770074093,-151.0,0.00015956,2]
[407759178,1772770074121,-151.0,0.00015956,2]
[407759179,1772770074149,-151.0,0.00015956,2]
[407759180,1772770074177,-151.0,0.00015956,2]
[407759181,1772770074204,-151.0,0.00015956,2]
[407759182,1772770074230,-151.0,0.00015956,2]
[407759183,1772770074256,-151.0,0.00015956,2]
[407759184,1772770074283,-151.0,0.00015956,2]
[407759185,1772770074460,-6980.01,0.00015956,2]
[407759186,1772770074491,-10000.01,0.00015956,2]
[407759189,1772770103377,999.1,0.00014,2]
[407759190,1772770110265,2190.31060726,0.00015856,2]
[407759191,1772770115757,251.96209436,0.00015856,2]
[407759192,1772770157158,-151.0,0.00015953,2]
[407759193,1772770157185,-1200.0,0.00015954,2]
[407759194,1772770157213,-300.0,0.00015954,2]
[407759195,1772770157240,-300.0,0.00015954,2]
[407759196,1772770157274,-43.02159645,0.00015955,2]
[407759197,1772770170611,10000.01,0.00015856,2]
[407759198,1772770170637,10000.01,0.00015856,2]
[407759199,1772770170665,10000.01,0.00015856,2]
[407759200,1772770170692,10000.01,0.00015856,2]
[407759201,1772770170719,10000.01,0.00015856,2]
[407759202,1772770170747,10000.01,0.00015856,2]
[407759203,1772770170775,10000.01,0.00015856,2]
[407759204,1772770170807,10000.01,0.00015856,2]
[407759205,1772770170837,10000.01,0.00015856,2]
[407759206,1772770170862,10000.01,0.00015856,2]
[407759207,1772770170888,6558.63729838,0.00015856,2]
[407759208,1772770170912,10000.01,0.00015856,2]
[407759209,1772770170935,10000.01,0.00015856,2]
[407759210,1772770170958,10000.01,0.00015856,2]
[407759211,1772770170983,10000.01,0.00015856,2]
[407759212,1772770171011,10000.01,0.00015856,2]
[407759213,1772770171038,10000.01,0.00015856,2]
[407759214,1772770171063,10000.01,0.00015856,2]
[407759215,1772770200313,502.0,0.00014,2]
[407759216,1772770205579,151.0,0.00014634,2]
[407759217,1772770205604,151.0,0.00014634,2]
[407759218,1772770207562,1113.59344916,7.945e-05,2]
[407759219,1772770207583,1804.94850274,7.945e-05,2]
[407759220,1772770207603,899.23914312,7.945e-05,2]
[407759221,1772770207624,1149.59522589,7.945e-05,2]
[407759222,1772770207645,1149.59522589,7.945e-05,2]
[407759223,1772770207665,1149.59522589,7.945e-05,2]
[407759224,1772770207690,928.44322731,7.945e-05,2]
[407759239,1772770232206,-162.13251526,0.00015846,2]
[407759240,1772770232215,-151.0,0.00015853,2]
[407759241,1772770232225,-151.0,0.00015853,2]
[407759242,1772770232234,-268.9242428,0.00015855,2]
[407759243,1772770232243,-300.0,0.00015855,2]
[407759244,1772770232252,-914.6354764,0.00015855,2]
[407759245,1772770232267,-285.3645236,0.00015855,2]